bitfinex-derivatives/quotes_SOLF0:USTF0_20250904
["timestamp","ask_amount","ask_price","bid_price","bid_amount"]
[1756982310153,4.3136,208.59,208.54,117.06]
[1756982310844,4.3136,208.59,208.55,7.15]
[1756982311048,4.3136,208.59,208.54,117.06]
[1756982311250,4.3136,208.59,208.55,7.15]
[1756982311447,4.3136,208.59,208.54,117.06]
[1756982311846,4.3136,208.59,208.55,7.15]
[1756982312545,4.3136,208.59,208.54,117.06]
[1756982312750,4.3136,208.59,208.55,7.15]
[1756982312948,4.3136,208.59,208.54,117.06]
[1756982313251,12.0536,208.59,208.55,7.15]
[1756982313451,12.0536,208.59,208.54,117.06]
[1756982313649,4.3139,208.58,208.55,7.15]
[1756982313855,7.74,208.57,208.55,7.15]
[1756982314248,4.3142,208.56,208.54,117.06]
[1756982314454,12.0542,208.56,208.54,117.06]
[1756982317253,7.74,208.55,208.54,117.06]
[1756982319760,4.3142,208.56,208.54,117.06]
[1756982319951,4.3142,208.56,208.54,124.21]
[1756982320554,4.3142,208.56,208.55,7.15]
[1756982321357,4.3138,208.58,208.55,7.15]
[1756982321562,0.03561393,208.6,208.55,7.15]
[1756982321858,0.03561393,208.6,208.54,117.06]
[1756982322057,3.70519786,208.59,208.55,7.15]
[1756982322257,0.03561393,208.6,208.54,120.09393594]
[1756982322457,3.70534423,208.59,208.54,120.09393594]
[1756982322658,0.03561393,208.6,208.55,7.15]
[1756982322858,3.70534448,208.59,208.54,120.09393594]
[1756982323163,4.34901393,208.6,208.54,120.09393594]
[1756982323352,3.70545837,208.59,208.54,120.09393594]
[1756982323560,4.34901393,208.6,208.54,120.09393594]
[1756982323758,3.70545865,208.59,208.54,120.09393594]
[1756982323957,4.34901393,208.6,208.54,120.09393594]
[1756982324164,3.70545865,208.59,208.55,7.15]
[1756982324361,4.34901393,208.6,208.54,120.09393594]
[1756982324562,3.70557027,208.59,208.54,120.09393594]
[1756982324763,4.34901393,208.6,208.55,7.15]
[1756982324964,3.70557027,208.59,208.54,120.09393594]
[1756982325262,11.7237,208.59,208.54,120.09393594]
[1756982325463,11.7237,208.59,208.55,7.15]
[1756982325762,11.7237,208.59,208.54,120.09393594]
[1756982325961,11.7237,208.59,208.55,7.15]
[1756982326162,11.7239,208.58,208.55,7.15]
[1756982326755,4.3139,208.58,208.54,117.06]
[1756982327157,4.3139,208.58,208.55,7.15]
[1756982329169,4.34901393,208.6,208.54,117.06]
[1756982329367,3.70810327,208.59,208.54,117.06]
[1756982329566,3.70810327,208.58,208.54,117.06]
[1756982329759,4.34901393,208.6,208.54,117.06]
[1756982329966,3.70810327,208.59,208.55,7.15]
[1756982330166,3.70810327,208.58,208.54,117.06]
[1756982330360,4.34901393,208.6,208.54,117.06]
[1756982330566,3.7085692,208.59,208.54,117.06]
[1756982330768,3.7085692,208.58,208.55,7.15]
[1756982330965,4.34901393,208.6,208.55,7.15]
[1756982331166,3.70856889,208.59,208.55,7.15]
[1756982331368,3.70856889,208.58,208.55,7.15]
[1756982331567,4.34901393,208.6,208.55,7.15]
[1756982331770,3.70896543,208.59,208.55,3.03393594]
[1756982331970,3.70896543,208.58,208.55,3.03393594]
[1756982332270,4.34901393,208.6,208.56,7.15]
[1756982332668,11.75901393,208.6,208.55,3.03393594]
[1756982333167,4.34901393,208.6,208.55,3.03393594]
[1756982333366,3.70962283,208.59,208.55,3.03393594]
[1756982333562,3.70962283,208.58,208.56,7.15]
[1756982333772,11.75901393,208.6,208.55,3.03393594]
[1756982333966,3.70800634,208.59,208.55,3.03393594]
[1756982334271,3.70873773,208.58,208.56,7.15]
[1756982334568,11.75901393,208.6,208.56,7.15]
[1756982334765,7.41,208.58,208.56,7.15]
[1756982335265,3.70932038,208.57,208.55,124.19]
[1756982335470,7.41,208.58,208.55,124.19]
[1756982335658,3.70944652,208.57,208.56,7.15]
[1756982336970,3.70944652,208.57,208.54,11.14264685]
[1756982337176,11.7239,208.58,208.55,117.04]
[1756982337367,3.71073404,208.57,208.55,124.19]
[1756982337669,11.7239,208.58,208.55,124.19]
[1756982337866,3.71073404,208.57,208.55,124.19]
[1756982338070,11.7239,208.58,208.56,7.15]
[1756982338272,3.71088496,208.57,208.56,7.15]
[1756982340273,4.3139,208.58,208.56,7.15]
[1756982341768,7.41,208.59,208.54,3.99264685]
[1756982341965,0.03561393,208.6,208.56,117.02]
[1756982342171,7.41,208.59,208.56,117.02]
[1756982342372,11.7244,208.56,208.53,124.17]
[1756982342562,4.3144,208.56,208.53,124.17]
[1756982342766,11.7244,208.56,208.53,124.17]
[1756982342967,11.7244,208.56,208.53,7.15]
[1756982343169,7.41,208.55,208.53,124.17]
[1756982343473,4.3139,208.58,208.53,117.02]
[1756982343672,4.3139,208.58,208.54,3.99264685]
[1756982344174,4.3139,208.58,208.55,7.15]
[1756982344375,4.3139,208.58,208.54,3.99264685]
[1756982344674,4.3139,208.58,208.55,7.15]
[1756982344880,3.71175931,208.57,208.55,7.15]
[1756982345073,3.71175931,208.56,208.55,7.15]
[1756982345278,7.41,208.55,208.53,121.01264685]
[1756982345572,7.41,208.55,208.53,117.02]
[1756982345773,3.71224151,208.54,208.53,117.02]
[1756982345970,11.7245,208.55,208.53,117.02]
[1756982346175,3.71217558,208.54,208.53,117.02]
[1756982347674,3.71217558,208.54,208.52,117.02]
[1756982347675,4.3148,208.53,208.52,117.02]
[1756982347872,11.7248,208.53,208.52,117.02]
[1756982348071,15.43619383,208.53,208.52,117.02]
[1756982348275,4.3151,208.52,208.5,3.99264685]
[1756982348467,4.3151,208.52,208.5,55.64264685]
[1756982348666,0.03182684,208.56,208.51,7.15]
[1756982348868,7.41,208.54,208.51,7.15]
[1756982349072,4.3149,208.53,208.51,7.15]
[1756982351477,11.7249,208.53,208.51,7.15]
[1756982352877,4.3152,208.51,208.5,44.5]
[1756982353272,7.94,208.51,208.48,11.17264685]
[1756982353477,4.3156,208.49,208.48,7.18]
[1756982353778,7.94,208.51,208.48,7.18]
[1756982353975,7.97570077,208.51,208.48,7.18]
[1756982354879,12.29100077,208.51,208.48,7.18]
[1756982355278,7.97570077,208.51,208.48,7.18]
[1756982355768,0.03570077,208.51,208.5,3.03393594]
[1756982355972,0.03570077,208.51,208.5,10.18393594]
[1756982359981,0.03570077,208.51,208.48,3.99264685]
[1756982360180,0.03570077,208.51,208.49,7.15]
[1756982364779,0.03570077,208.51,208.48,7.15]
[1756982364985,0.03570077,208.51,208.47,3.99264685]
[1756982365179,0.03570077,208.51,208.48,7.15]
[1756982365378,7.97570077,208.51,208.48,7.15]
[1756982366879,0.03570077,208.51,208.47,7.15]
[1756982367080,0.03570077,208.51,208.46,91.83264685]
[1756982367081,0.03570077,208.51,208.49,7.15]
[1756982368380,12.29100077,208.51,208.49,7.15]
[1756982371094,4.35100077,208.51,208.49,1.9431822]
[1756982371395,0.03570077,208.51,208.5,7.15]
[1756982371795,0.03570077,208.51,208.47,3.99264685]
[1756982371796,7.97570077,208.51,208.48,1.9431822]
[1756982372095,0.03570077,208.51,208.48,1.9431822]
[1756982372291,0.03570077,208.51,208.5,1.9431822]
[1756982372498,0.03570077,208.51,208.5,9.0931822]
[1756982373294,0.03570077,208.51,208.5,7.15]
[1756982380507,0.03570077,208.51,208.5,9.0931822]
[1756982381795,0.03570077,208.51,208.5,7.15]
[1756982381996,0.03570077,208.51,208.5,9.0931822]
[1756982384506,4.3143,208.56,208.5,9.0931822]
[1756982384507,7.51,208.62,208.51,7.15]
[1756982384709,1.9431822,208.63,208.57,9.0931822]
[1756982385399,7.51,208.62,208.57,9.0931822]
[1756982385607,9.4531822,208.63,208.57,1.9431822]
[1756982385997,4.3135,208.6,208.58,7.15]
[1756982388707,4.3135,208.6,208.58,9.0931822]
[1756982390406,4.3135,208.6,208.58,1.9431822]
[1756982390611,4.3135,208.6,208.59,7.15]
[1756982392612,4.3135,208.6,208.54,7.15]
[1756982392813,4.3135,208.6,208.58,1.9431822]
[1756982393713,4.3135,208.6,208.58,9.0931822]
[1756982394513,4.3135,208.6,208.59,7.15]
[1756982394817,4.3129,208.62,208.59,7.15]
[1756982395011,11.8229,208.62,208.59,7.15]
[1756982395512,7.51,208.63,208.6,9.0931822]
[1756982395713,7.51,208.67,208.6,1.9431822]
[1756982397518,9.4531822,208.67,208.6,1.9431822]
[1756982398018,7.51,208.63,208.6,9.0931822]
[1756982398612,7.51,208.62,208.6,7.15]
[1756982399417,4.3124,208.65,208.59,1.9431822]
[1756982399612,11.8224,208.65,208.59,9.0931822]
[1756982400715,11.8224,208.65,208.62,7.15]
[1756982400918,7.51,208.65,208.62,7.15]
[1756982401220,11.822,208.67,208.64,7.15]
[1756982402423,4.3116,208.69,208.66,7.15]
[1756982402612,7.51,208.68,208.65,1.9431822]
[1756982403007,7.51,208.68,208.65,9.0931822]
[1756982403522,11.8218,208.68,208.65,9.0931822]
[1756982403819,7.51,208.67,208.65,9.0931822]
[1756982405008,7.51,208.67,208.65,1.9431822]
[1756982406115,7.51,208.67,208.62,7.15]
[1756982406322,4.3118,208.68,208.64,1.9431822]
[1756982406717,7.51,208.67,208.64,1.9431822]
[1756982407023,7.51,208.67,208.64,9.0931822]
[1756982407417,4.3118,208.68,208.64,9.0931822]
[1756982407717,7.51,208.67,208.64,9.0931822]
[1756982409618,4.3118,208.68,208.64,9.0931822]
[1756982409820,7.51,208.67,208.64,9.0931822]
[1756982412928,7.51,208.67,208.64,7.15]
[1756982413124,7.51,208.67,208.65,1.9431822]
[1756982415827,7.22,208.67,208.65,1.9431822]
[1756982416019,7.22,208.67,208.64,7.15]
[1756982416221,4.3118,208.68,208.64,1.9431822]
[1756982416427,7.22,208.67,208.64,1.9431822]
[1756982417027,4.3118,208.68,208.64,1.9431822]
[1756982417622,7.22,208.67,208.64,1.9431822]
[1756982418021,4.3118,208.68,208.64,1.9431822]
[1756982418229,7.22,208.67,208.64,1.9431822]
[1756982418628,4.3118,208.68,208.64,1.9431822]
[1756982419021,7.22,208.67,208.64,1.9431822]
[1756982419329,4.3118,208.68,208.64,1.9431822]
[1756982419725,7.22,208.67,208.64,1.9431822]
[1756982420329,4.3118,208.68,208.64,1.9431822]
[1756982420928,7.22,208.67,208.64,1.9431822]
[1756982421332,4.3118,208.68,208.64,1.9431822]
[1756982421530,7.22,208.67,208.64,1.9431822]
[1756982421725,4.3118,208.68,208.64,1.9431822]
[1756982421924,7.22,208.67,208.64,1.9431822]
[1756982422124,4.3118,208.68,208.64,1.9431822]
[1756982422325,7.22,208.67,208.64,9.0831822]
[1756982422626,7.22,208.67,208.66,1.9431822]
[1756982425532,4.3118,208.68,208.64,7.14]
[1756982426029,7.22,208.67,208.64,7.14]
[1756982426229,4.3118,208.68,208.64,7.14]
[1756982426424,7.22,208.67,208.64,7.14]
[1756982426629,4.3118,208.68,208.64,7.14]
[1756982426829,7.22,208.67,208.64,7.14]
[1756982428027,4.3118,208.68,208.64,7.14]
[1756982428625,7.22,208.67,208.64,7.14]
[1756982429227,7.22,208.68,208.62,3.03111427]
[1756982429433,4.3114,208.7,208.63,7.14]
[1756982430735,7.22,208.71,208.63,7.14]
[1756982430936,7.22,208.75,208.66,7.14]
[1756982431435,7.22,208.75,208.69,7.14]
[1756982434131,7.22,208.73,208.69,7.14]
[1756982434642,7.22,208.73,208.66,10.17111427]
[1756982435439,7.22,208.73,208.67,7.14]
[1756982435841,11.5307,208.73,208.67,7.14]
[1756982439342,4.3103,208.75,208.67,7.14]
[1756982439541,4.3103,208.75,208.69,3.03111427]
[1756982439940,131.36413161,208.76,208.7,7.14]
[1756982440140,7.22,208.76,208.7,7.14]
[1756982440339,0.03084746,208.74,208.73,7.14]
[1756982440847,7.22,208.79,208.73,7.14]
[1756982442743,11.5295,208.79,208.73,7.14]
[1756982443349,4.3097,208.78,208.73,7.14]
[1756982443647,4.3097,208.78,208.72,10.19111427]
[1756982448550,7.5,208.79,208.72,10.19111427]
[1756982449839,7.5,208.79,208.73,7.16]
[1756982450553,3.03111427,208.85,208.7,65.64]
[1756982450554,11.8089,208.82,208.75,3.03111427]
[1756982450755,11.8089,208.82,208.75,10.19111427]
[1756982451650,4.3084,208.84,208.76,7.16]
[1756982451850,7.5,208.86,208.78,10.19111427]
[1756982452953,7.5,208.86,208.79,7.16]
[1756982453256,7.5,208.86,208.79,10.19111427]
[1756982454053,7.5,208.86,208.79,7.16]
[1756982454255,7.5,208.86,208.79,10.19111427]
[1756982459151,11.808,208.86,208.79,10.19111427]
[1756982459658,11.808,208.86,208.8,7.16]
[1756982459858,7.5,208.86,208.8,7.16]
[1756982461459,7.5,208.86,208.8,10.19111427]
[1756982462662,70.02651427,208.92,208.76,4.3099]
[1756982462663,7.5,208.88,208.76,38.38]
[1756982462857,7.5,208.88,208.77,3.03111427]
[1756982463055,4.309,208.81,208.71,4.3109]
[1756982463256,7.5,208.82,208.7,7.16]
[1756982463560,67.0226,208.83,208.7,10.19111427]
[1756982463561,70.05371427,208.83,208.7,10.19111427]
[1756982463961,11.81,208.76,208.7,7.16]
[1756982467668,4.3102,208.75,208.7,7.16]
[1756982468061,7.5,208.74,208.7,7.16]
[1756982468768,4.3102,208.75,208.69,28.12]
[1756982469664,4.3102,208.75,208.7,7.16]
[1756982470062,4.3102,208.75,208.69,28.12]
[1756982470869,4.3102,208.75,208.7,7.16]
[1756982471163,4.3102,208.75,208.69,28.12]
[1756982471568,4.3102,208.75,208.7,7.16]
[1756982471768,4.3102,208.75,208.69,35.28]
[1756982471971,11.8102,208.75,208.69,35.28]
[1756982473273,4.3097,208.77,208.7,7.13]
[1756982474668,7.76,208.82,208.74,3.03111427]
[1756982474877,7.76,208.82,208.75,7.13]
[1756982475174,4.3089,208.81,208.75,7.13]
[1756982475473,7.76,208.82,208.75,7.13]
[1756982476071,7.76,208.82,208.76,3.03111427]
[1756982476277,7.76,208.82,208.76,10.17111427]
[1756982477271,12.0688,208.82,208.76,7.14]
[1756982477470,7.76,208.82,208.76,7.14]
[1756982478373,67.0118,208.86,208.76,7.14]
[1756982478374,4.3089,208.81,208.76,7.14]
[1756982478776,7.76,208.8,208.76,7.14]
[1756982478978,7.76,208.8,208.75,3.03111427]
[1756982479276,7.76,208.8,208.76,7.14]
[1756982479973,4.3089,208.81,208.76,7.14]
[1756982480471,7.76,208.8,208.76,7.14]
[1756982480668,4.3089,208.81,208.76,7.14]
[1756982480877,7.76,208.8,208.76,7.14]
[1756982481569,4.3089,208.81,208.76,7.14]
[1756982481774,7.76,208.8,208.76,7.14]
[1756982482079,12.0692,208.8,208.76,7.14]
[1756982482277,4.3092,208.8,208.76,7.14]
[1756982482474,7.76,208.79,208.76,7.14]
[1756982482674,7.76,208.79,208.73,7.14]
[1756982482675,4.3094,208.79,208.73,7.14]
[1756982482876,7.76,208.8,208.73,7.14]
[1756982483875,12.0698,208.77,208.73,7.14]
[1756982484180,4.3098,208.77,208.72,7.14]
[1756982484481,7.76,208.75,208.72,7.14]
[1756982485274,67.0313,208.8,208.71,66.88]
[1756982485573,3.65291307,208.79,208.71,66.88]
[1756982485774,4.3104,208.74,208.72,7.14]
[1756982487384,7.76,208.75,208.72,7.14]
[1756982488180,7.76,208.8,208.73,1.93892156]
[1756982488386,11.41283477,208.79,208.76,7.14]
[1756982488582,3.65283477,208.78,208.75,1.93892156]
[1756982488786,3.65283477,208.77,208.75,1.93892156]
[1756982488991,4.3096,208.78,208.75,1.93892156]
[1756982489287,12.0696,208.78,208.75,9.07892156]
[1756982489593,7.76,208.86,208.77,1.93892156]
[1756982489890,7.76,208.86,208.79,1.93892156]
[1756982490890,7.76,208.86,208.81,1.93892156]
[1756982491091,128.91644489,208.87,208.81,1.93892156]
[1756982491791,7.76,208.86,208.82,7.14]
[1756982491988,7.76,208.86,208.83,1.93892156]
[1756982492585,126.97752333,208.87,208.83,1.93892156]
[1756982492791,7.76,208.86,208.83,1.93892156]
[1756982492988,12.0681,208.85,208.83,1.93892156]
[1756982493488,12.0681,208.85,208.82,1.93892156]
[1756982494296,4.3081,208.85,208.82,1.93892156]
[1756982494594,7.76,208.84,208.82,1.93892156]
[1756982494794,7.76,208.86,208.79,1.93892156]
[1756982495196,4.3086,208.83,208.76,7.14]
[1756982495497,7.76,208.82,208.79,1.93892156]
[1756982496196,12.0688,208.82,208.79,1.93892156]
[1756982496394,7.76,208.81,208.79,1.93892156]
[1756982496600,12.0689,208.81,208.79,1.93892156]
[1756982497001,7.76,208.8,208.79,1.93892156]
[1756982498402,4.3089,208.81,208.79,1.93892156]
[1756982498600,4.3089,208.81,208.79,9.07892156]
[1756982499596,1.93892156,208.8,208.73,9.07892156]
[1756982499800,7.76,208.79,208.73,9.07892156]
[1756982500201,4.3097,208.77,208.73,1.93892156]
[1756982500591,4.3097,208.77,208.74,7.14]
[1756982500793,7.76,208.76,208.73,9.07892156]
[1756982502003,12.0697,208.77,208.73,9.07892156]
[1756982502404,12.0697,208.77,208.73,1.93892156]
[1756982502604,12.0697,208.77,208.73,9.07892156]
[1756982502908,12.0697,208.77,208.74,7.14]
[1756982503597,4.3097,208.77,208.74,7.14]
[1756982504608,4.3097,208.77,208.73,1.93892156]
[1756982504809,7.23,208.81,208.76,7.14]
[1756982504810,4.3093,208.79,208.76,7.14]
[1756982505308,4.3093,208.79,208.77,1.93892156]
[1756982505904,11.5389,208.81,208.78,7.14]
[1756982506510,4.3091,208.8,208.76,1.93892156]
[1756982506710,1.93892156,208.84,208.74,1.93892156]
[1756982506711,1.93892156,208.82,208.74,1.93892156]
[1756982506912,7.23,208.81,208.74,1.93892156]
[1756982507912,7.23,208.77,208.74,1.93892156]
[1756982508115,7.23,208.77,208.74,9.07892156]
[1756982511116,7.23,208.79,208.76,1.93892156]
[1756982511616,7.23,208.82,208.76,1.93892156]
[1756982512012,7.23,208.82,208.77,7.14]
[1756982512210,7.23,208.82,208.79,7.14]
[1756982513319,7.23,208.85,208.78,1.93892156]
[1756982513520,4.309,208.81,208.78,1.93892156]
[1756982513717,11.539,208.81,208.78,1.93892156]
[1756982513913,4.309,208.81,208.78,1.93892156]
[1756982514220,11.5391,208.8,208.78,1.93892156]
[1756982514715,11.5394,208.79,208.76,7.14]
[1756982514922,67.0119,208.86,208.76,1.93892156]
[1756982514923,9.16892156,208.83,208.76,1.93892156]
[1756982515115,7.23,208.81,208.74,1.93892156]
[1756982516210,4.3098,208.77,208.74,1.93892156]
[1756982516415,11.5398,208.77,208.74,1.93892156]
[1756982516610,7.23,208.76,208.74,1.93892156]
[1756982517122,4.3098,208.77,208.74,9.07892156]
[1756982517423,11.54,208.76,208.74,1.93892156]
[1756982517915,67.0241,208.82,208.74,1.93892156]
[1756982518116,11.5396,208.78,208.76,1.93892156]
[1756982519023,7.23,208.77,208.72,7.14]
[1756982519225,7.23,208.77,208.76,1.93892156]
[1756982519722,11.5398,208.77,208.75,1.93892156]
[1756982521132,11.5394,208.79,208.75,9.07892156]
[1756982521333,7.23,208.81,208.74,1.93892156]
[1756982521630,7.23,208.79,208.73,1.93892156]
[1756982522031,7.23,208.79,208.71,1.93892156]
[1756982522224,7.23,208.79,208.73,1.93892156]
[1756982522530,4.3103,208.75,208.73,1.93892156]
[1756982522727,7.23,208.81,208.74,7.14]
[1756982522928,7.23,208.82,208.76,1.93892156]
[1756982523229,4.3096,208.78,208.76,1.93892156]
[1756982523826,7.23,208.77,208.76,1.93892156]
[1756982524030,4.31,208.76,208.74,1.93892156]
[1756982524432,4.31,208.76,208.74,7.14]
[1756982524631,4.31,208.76,208.75,7.14]
[1756982525027,11.5395,208.78,208.75,7.14]
[1756982525533,4.3095,208.78,208.76,9.07892156]
[1756982525721,4.3091,208.8,208.77,7.14]
[1756982525922,11.5391,208.8,208.77,7.14]
[1756982526325,4.3091,208.8,208.77,7.14]
[1756982526528,11.5391,208.8,208.77,7.14]
[1756982526729,4.3094,208.79,208.77,7.14]
[1756982529236,7.23,208.77,208.76,1.93892156]
[1756982530032,4.3096,208.78,208.76,1.93892156]
[1756982530433,11.5392,208.8,208.76,1.93892156]
[1756982530634,11.5392,208.8,208.76,9.07892156]
[1756982531033,11.5392,208.8,208.76,1.93892156]
[1756982531336,4.3092,208.8,208.78,9.07892156]
[1756982531534,4.3088,208.82,208.79,7.14]
[1756982532736,4.3088,208.82,208.8,9.07892156]
[1756982533435,4.3088,208.82,208.8,1.93892156]
[1756982533638,7.81,208.81,208.8,1.93892156]
[1756982534539,4.3092,208.8,208.78,1.93892156]
[1756982534833,7.81,208.79,208.78,1.93892156]
[1756982535036,68.95702156,208.84,208.76,1.93892156]
[1756982535230,7.81,208.77,208.76,1.93892156]
[1756982535835,12.1198,208.77,208.75,1.93892156]
[1756982536238,7.81,208.8,208.75,1.93892156]
[1756982536434,67.0239,208.83,208.77,1.93892156]
[1756982536629,4.3096,208.78,208.77,1.93892156]
[1756982536830,12.1196,208.78,208.75,7.14]
[1756982537038,12.1196,208.78,208.77,1.93892156]
[1756982537330,4.3096,208.78,208.77,1.93892156]
[1756982541242,12.1196,208.78,208.77,1.93892156]
[1756982542839,12.1196,208.78,208.76,1.93892156]
[1756982543146,7.81,208.77,208.76,1.93892156]
[1756982543642,7.81,208.77,208.72,7.14]
[1756982543643,4.3098,208.77,208.74,1.93892156]
[1756982543839,7.81,208.76,208.74,1.93892156]
[1756982544145,7.81,208.81,208.74,1.93892156]
[1756982545641,7.81,208.83,208.75,7.14]
[1756982546038,7.81,208.83,208.77,1.93892156]
[1756982546234,7.81,208.83,208.75,7.14]
[1756982546544,7.81,208.79,208.76,1.93892156]
[1756982547440,7.81,208.79,208.75,7.14]
[1756982547845,7.81,208.79,208.73,7.02087401]
[1756982549746,7.81,208.79,208.74,3.02781992]
[1756982549952,7.81,208.79,208.73,14.16087401]
[1756982550250,12.1194,208.79,208.73,11.13305409]
[1756982550547,12.1194,208.79,208.73,7.14]
[1756982551943,4.3096,208.78,208.73,7.14]
[1756982552253,7.81,208.77,208.73,7.14]
[1756982552550,4.3098,208.77,208.73,7.14]
[1756982552753,4.3098,208.77,208.72,7.02087401]
[1756982552754,7.81,208.76,208.72,7.02087401]
[1756982553145,7.81,208.76,208.72,14.16087401]
[1756982553450,4.3098,208.77,208.72,7.02087401]
[1756982553650,12.1198,208.77,208.73,7.14]
[1756982553849,7.81,208.76,208.72,7.02087401]
[1756982554350,7.81,208.76,208.72,14.16087401]
[1756982555047,4.3098,208.77,208.72,10.16781992]
[1756982555446,7.81,208.76,208.72,10.16781992]
[1756982556047,7.81,208.76,208.73,7.14]
[1756982557254,4.3093,208.79,208.73,7.14]
[1756982557464,7.81,208.8,208.73,7.14]
[1756982558965,4.3096,208.78,208.72,14.16087401]
[1756982563170,4.3098,208.77,208.72,7.02087401]
[1756982563370,11.7198,208.77,208.73,7.14]
[1756982564970,4.3098,208.77,208.72,7.02087401]
[1756982565369,4.3098,208.77,208.73,7.14]
[1756982565570,4.3098,208.77,208.74,7.14]
[1756982566267,11.7198,208.77,208.74,7.14]
[1756982567870,7.41,208.79,208.72,3.99305409]
[1756982568370,4.3104,208.74,208.71,3.99305409]
[1756982568571,7.41,208.73,208.71,3.99305409]
[1756982568965,7.41,208.73,208.7,3.99305409]
[1756982569166,7.41,208.73,208.71,3.99305409]
[1756982570176,7.41,208.73,208.7,11.13305409]
[1756982571275,4.3108,208.72,208.7,11.13305409]
[1756982571473,4.3108,208.72,208.68,124.14]
[1756982571779,7.41,208.71,208.68,124.14]
[1756982572172,67.0373,208.78,208.68,124.14]
[1756982572173,4.3111,208.7,208.68,117.0]
[1756982572371,7.41,208.69,208.66,3.99305409]
[1756982572675,4.3111,208.7,208.66,3.99305409]
[1756982572875,7.41,208.69,208.66,3.99305409]
[1756982573078,11.7215,208.69,208.66,3.99305409]
[1756982573274,11.7215,208.69,208.65,128.15305409]
[1756982573275,7.41,208.68,208.65,128.15305409]
[1756982574279,4.3117,208.68,208.65,124.16]
[1756982574481,11.7217,208.68,208.65,124.16]
[1756982575187,7.41,208.67,208.65,117.02]
[1756982575379,11.7219,208.67,208.65,117.02]
[1756982575576,7.41,208.66,208.65,117.02]
[1756982576481,7.41,208.66,208.62,7.14]
[1756982576482,4.3122,208.65,208.62,124.14]
[1756982576679,11.7222,208.65,208.62,124.14]
[1756982577283,11.7225,208.64,208.62,117.0]
[1756982578182,4.312,208.66,208.62,117.0]
[1756982578383,4.312,208.66,208.63,7.14]
[1756982578775,11.7223,208.65,208.62,117.0]
[1756982578979,7.41,208.65,208.62,117.0]
[1756982579183,7.41,208.65,208.62,124.14]
[1756982579883,4.3125,208.64,208.62,124.14]
[1756982580184,4.3125,208.64,208.63,7.14]
[1756982580689,4.312,208.66,208.62,117.0]
[1756982580885,11.722,208.66,208.63,7.14]
[1756982581788,4.3123,208.65,208.63,7.14]
[1756982581986,7.41,208.68,208.62,117.0]
[1756982583891,4.3123,208.65,208.62,117.0]
[1756982584188,4.3123,208.65,208.63,7.14]
[1756982591290,11.7223,208.65,208.63,7.14]
[1756982591485,7.41,208.65,208.62,117.0]
[1756982591690,4.3126,208.63,208.62,124.14]
[1756982592396,74.4906,208.65,208.58,7.14]
[1756982592592,7.79,208.63,208.59,41.88]
[1756982592989,67.0824,208.64,208.59,41.88]
[1756982593483,7.79,208.63,208.59,41.88]
[1756982593689,67.0824,208.64,208.59,41.88]
[1756982593892,4.3132,208.6,208.59,41.88]
[1756982595996,12.1032,208.6,208.59,41.88]
[1756982596199,67.0982,208.59,208.53,7.15]
[1756982596399,67.0982,208.59,208.55,116.94]
[1756982596695,4.314,208.56,208.55,124.09]
[1756982607409,4.3137,208.58,208.55,116.94]
[1756982607600,4.3137,208.58,208.56,7.15]
[1756982607805,4.3129,208.62,208.58,7.15]